[Event "58th Akiba Rubinstein A 2022"]
[Site "Polanica-Zdroj"]
[Date "2022.08.20"]
[Round "8.12"]
[White "Smietanska, Wiktoria"]
[Black "Sliwerski, Radoslaw"]
[Result "0-1"]
[ECO "B51"]
[WhiteElo "1919"]
[BlackElo "1951"]
[Annotator "NA RC"]
[PlyCount "74"]
[EventDate "2022.08.13"]
[EventCountry "POL"]
[SourceTitle "playchess.com"]
[Source "ChessBase"]
[SourceQuality "1"]
[TimeControl "40/5400+30:1800+30"]

1. e4 {[%emt 0:00:02]} c5 {[%emt 0:00:02]} 2. Nf3 {[%emt 0:00:10]} d6 {[%emt 0:00:02]} 3. Bb5+ {[%emt 0:00:10]} Nd7 {[%emt 0:00:03]} 4. Ba4 {[%emt 0:00:11]} a6 {[%emt 0:00:11]} 5. c4 {[%emt 0:00:06]} Ngf6 {[%emt 0:00:05]} 6. O-O {[%emt 0:00:13]} e6 {[%emt 0:00:03]} 7. Nc3 {[%emt 0:00:52]} Qc7 {[%emt 0:01:40]} 8. Qe2 {[%emt 0:04:05]} Be7 {[%emt 0:01:11]} 9. d4 {[%emt 0:01:26]} cxd4 {[%emt 0:00:33]} 10. Nxd4 {[%emt 0:00:28]} O-O {[%emt 0:00:17]} 11. f4 {[%emt 0:05:36]} b6 {[%emt 0:04:56]} 12. Bc2 {[%emt 0:02:47]} Bb7 {[%emt 0:01:38]} 13. Bd2 {[%emt 0:04:49]} Rac8 {[%emt 0:02:50]} 14. b3 {[%emt 0:01:01]} b5 {[%emt 0:07:09]} 15. Bd3 {[%emt 0:14:25]} bxc4 {[%emt 0:04:05]} 16. Bxc4 {[%emt 0:01:06]} d5 {[%emt 0:02:17]} 17. exd5 {[%emt 0:03:25]} Bc5 {[%emt 0:03:27]} 18. Be3 {[%emt 0:01:55]} exd5 {[%emt 0:04:39]} 19. Bd3 {[%emt 0:13:40]} Rfe8 {[%emt 0:02:39]} 20. Qf3 {[%emt 0:15:52]} Qb6 {[%emt 0:05:47]} 21. Nce2 {[%emt 0:01:42]} Rxe3 {[%emt 0:03:59]} 22. Qxe3 {[%emt 0:00:20]} Re8 {[%emt 0:01:01]} 23. Qd2 {[%emt 0:11:13]} Bxd4+ {[%emt 0:02:03]} 24. Nxd4 {[%emt 0:00:15]} Qxd4+ {[%emt 0:00:06]} 25. Kh1 {[%emt 0:00:13]} Ne4 {[%emt 0:01:31]} 26. Qc2 {[%emt 0:00:27]} Ndc5 {[%emt 0:01:14]} 27. Bxe4 {[%emt 0:00:40]} dxe4 {[%emt 0:00:26]} 28. Rad1 {[%emt 0:02:21]} Nd3 {[%emt 0:00:52]} 29. Qe2 {[%emt 0:01:06]} Rd8 {[%emt 0:02:14]} 30. h3 {[%emt 0:04:27]} Rd6 {[%emt 0:08:34]} 31. Kh2 {[%emt 0:03:27]} f5 {[%emt 0:01:50]} 32. Rd2 {[%emt 0:00:31]} e3 {[%emt 0:03:55]} 33. Rfd1 {[%emt 0:02:15]} Qxf4+ {[%emt 0:03:57]} 34. g3 {[%emt 0:01:02]} Qe4 {[%emt 0:01:46]} 35. Rc2 {[%emt 0:01:56]} f4 {[%emt 0:02:05]} 36. gxf4 {[%emt 0:01:05]} Qxf4+ {[%emt 0:01:56]} 37. Kg1 {[%emt 0:00:08]} Rg6+ {[%emt 0:00:07]} 0-1

[Event "58th Akiba Rubinstein A 2022"]
[Site "Polanica-Zdroj"]
[Date "2022.08.20"]
[Round "8.13"]
[White "Czechowski, Jakub"]
[Black "Antoniewicz, Jakub"]
[Result "1-0"]
[ECO "A83"]
[WhiteElo "2003"]
[BlackElo "1931"]
[Annotator "NA RC"]
[PlyCount "63"]
[EventDate "2022.08.13"]
[EventCountry "POL"]
[SourceTitle "playchess.com"]
[Source "ChessBase"]
[SourceQuality "1"]
[TimeControl "40/5400+30:1800+30"]

1. d4 {[%emt 0:00:03]} f5 {[%emt 0:01:32]} 2. e4 {[%emt 0:00:05]} fxe4 {[%emt 0:00:06]} 3. Nc3 {[%emt 0:00:04]} Nf6 {[%emt 0:00:31]} 4. Bg5 {[%emt 0:00:05]} g6 {[%emt 0:00:05]} 5. Bc4 {[%emt 0:00:40]} c6 {[%emt 0:00:33]} 6. d5 {[%emt 0:00:09]} Bg7 {[%emt 0:04:18]} 7. Qd2 {[%emt 0:07:54]} e6 {[%emt 0:06:40]} 8. d6 {[%emt 0:03:18]} b5 {[%emt 0:01:26]} 9. Bb3 {[%emt 0:01:06]} b4 {[%emt 0:03:58]} 10. Na4 {[%emt 0:00:06]} a5 {[%emt 0:10:35]} 11. Ne2 {[%emt 0:17:24]} Ba6 {[%emt 0:04:04]} 12. Nf4 {[%emt 0:05:59]} e5 {[%emt 0:12:45]} 13. Ne2 {[%emt 0:10:14]} Bb5 {[%emt 0:04:37]} 14. Nc5 {[%emt 0:08:06]} Na6 15. Nxa6 {[%emt 0:01:42]} Rxa6 {[%emt 0:06:03]} 16. a4 {[%emt 0:02:23]} Bxe2 {[%emt 0:12:31]} 17. Qxe2 {[%emt 0:00:08]} Qb6 {[%emt 0:00:02]} 18. Bxf6 {[%emt 0:05:09]} Bxf6 {[%emt 0:00:01]} 19. O-O-O {[%emt 0:00:54]} Kd8 {[%emt 0:10:17]} 20. Qxe4 {[%emt 0:02:24]} Kc8 {[%emt 0:03:25]} 21. f3 {[%emt 0:02:07]} Kb7 {[%emt 0:02:39]} 22. h4 {[%emt 0:00:21]} Raa8 {[%emt 0:00:33]} 23. h5 {[%emt 0:00:28]} g5 {[%emt 0:06:31]} 24. Qf5 {[%emt 0:00:44]} Qd8 {[%emt 0:00:01]} 25. Rhe1 {[%emt 0:04:02]} Kc8 {[%emt 0:02:59]} 26. Re4 {[%emt 0:01:17]} Bg7 {[%emt 0:00:52]} 27. Rc4 {[%emt 0:00:12]} Ra6 {[%emt 0:00:00]} 28. Qd3 {[%emt 0:03:30]} Qf6 {[%emt 0:02:51]} 29. Rxb4 {[%emt 0:00:10]} axb4 {[%emt 0:03:12]} 30. Qxa6+ {[%emt 0:00:05]} Kb8 {[%emt 0:00:01]} 31. Qb6+ {[%emt 0:00:08]} Ka8 {[%emt 0:00:10]} 32. Rd5 {[%emt 0:00:02]} 1-0

[Event "58th Akiba Rubinstein A 2022"]
[Site "Polanica-Zdroj"]
[Date "2022.08.20"]
[Round "8.14"]
[White "Wolanski, Michal"]
[Black "Hetzer, Volkhard"]
[Result "0-1"]
[ECO "A15"]
[WhiteElo "2005"]
[BlackElo "1921"]
[Annotator "NA RC"]
[PlyCount "154"]
[EventDate "2022.08.13"]
[EventCountry "POL"]
[SourceTitle "playchess.com"]
[Source "ChessBase"]
[SourceQuality "1"]
[TimeControl "40/5400+30:1800+30"]

1. c4 {[%emt 0:00:03]} Nf6 {[%emt 0:01:01]} 2. g3 {[%emt 0:00:08]} g6 {[%emt 0:00:05]} 3. Bg2 {[%emt 0:00:06]} Bg7 {[%emt 0:00:04]} 4. Nc3 {[%emt 0:00:06]} O-O {[%emt 0:00:13]} 5. Nf3 {[%emt 0:00:05]} d6 {[%emt 0:00:09]} 6. O-O {[%emt 0:00:06]} Nc6 {[%emt 0:00:46]} 7. Rb1 {[%emt 0:00:14]} a5 {[%emt 0:00:11]} 8. a3 {[%emt 0:00:06]} e5 {[%emt 0:12:05]} 9. d3 {[%emt 0:00:06]} h6 {[%emt 0:05:00]} 10. b4 {[%emt 0:00:12]} axb4 {[%emt 0:00:04]} 11. axb4 {[%emt 0:00:07]} Nh5 {[%emt 0:03:10]} 12. b5 {[%emt 0:00:50]} Ne7 {[%emt 0:00:46]} 13. Qb3 {[%emt 0:00:34]} Kh7 {[%emt 0:11:03]} 14. Bb2 {[%emt 0:01:20]} Be6 {[%emt 0:10:00]} 15. Ra1 {[%emt 0:05:11]} Rb8 {[%emt 0:10:19]} 16. Ne4 {[%emt 0:01:17]} b6 {[%emt 0:05:22]} 17. Ra7 {[%emt 0:01:51]} Nc8 {[%emt 0:05:27]} 18. Ra2 {[%emt 0:00:46]} f5 {[%emt 0:06:43]} 19. Neg5+ {[%emt 0:00:28]} hxg5 {[%emt 0:00:09]} 20. Bc1 {[%emt 0:01:15]} Bf6 {[%emt 0:02:02]} 21. Qc2 {[%emt 0:01:23]} g4 {[%emt 0:00:37]} 22. Nd2 {[%emt 0:00:36]} Bg5 {[%emt 0:02:45]} 23. e3 {[%emt 0:01:18]} Rf7 {[%emt 0:02:47]} 24. Bb2 {[%emt 0:01:34]} Bf6 {[%emt 0:00:56]} 25. Rfa1 {[%emt 0:00:43]} Qh8 {[%emt 0:02:31]} 26. Ra8 {[%emt 0:01:03]} Rxa8 {[%emt 0:02:35]} 27. Rxa8 {[%emt 0:00:09]} Rf8 {[%emt 0:00:44]} 28. Ba3 {[%emt 0:04:15]} Ng7 {[%emt 0:02:13]} 29. Qa4 {[%emt 0:02:03]} Bd7 {[%emt 0:00:34]} 30. Qa6 {[%emt 0:02:24]} Ne6 {[%emt 0:00:43]} 31. Qb7 Qg7 {[%emt 0:00:53]} 32. Bd5 {[%emt 0:08:02]} Qe7 {[%emt 0:03:47]} 33. Rb8 {[%emt 0:07:03]} Qd8 {[%emt 0:01:26]} 34. Bxd6 {[%emt 0:06:21]} Nc5 {[%emt 0:07:31]} 35. Qxc7 {[%emt 0:04:25]} Qxc7 {[%emt 0:00:28]} 36. Bxc7 {[%emt 0:00:10]} Kg7 {[%emt 0:02:20]} 37. Bxb6 {[%emt 0:05:56]} Nxb6 {[%emt 0:00:10]} 38. Rxb6 {[%emt 0:00:07]} Nxd3 {[%emt 0:00:37]} 39. Nb3 {[%emt 0:01:00]} Be7 {[%emt 0:00:57]} 40. Rb7 {[%emt 0:00:00]} Rd8 {[%emt 0:00:00]} 41. Bc6 {[%emt 0:18:13]} Bxc6 {[%emt 0:02:14]} 42. bxc6 {[%emt 0:01:25]} Kf6 {[%emt 0:09:43]} 43. Rb6 {[%emt 0:02:50]} Rc8 {[%emt 0:00:55]} 44. Na5 {[%emt 0:03:57]} e4 {[%emt 0:03:29]} 45. Nb3 {[%emt 0:07:05]} Bc5 {[%emt 0:09:04]} 46. Nxc5 {[%emt 0:08:42]} Nxc5 {[%emt 0:00:05]} 47. Kg2 {[%emt 0:01:59]} Nd3 {[%emt 0:00:47]} 48. c7+ {[%emt 0:00:34]} Kf7 {[%emt 0:01:21]} 49. Rc6 {[%emt 0:02:46]} Ne5 {[%emt 0:00:39]} 50. Rc5 {[%emt 0:00:15]} Ke6 {[%emt 0:00:13]} 51. h3 {[%emt 0:00:38]} gxh3+ {[%emt 0:00:40]} 52. Kxh3 {[%emt 0:00:08]} Kf6 {[%emt 0:03:07]} 53. Kg2 {[%emt 0:01:39]} g5 {[%emt 0:01:18]} 54. Kf1 {[%emt 0:01:43]} g4 {[%emt 0:00:20]} 55. Ke2 {[%emt 0:01:11]} Nd7 {[%emt 0:00:45]} 56. Rc6+ {[%emt 0:00:42]} Ke5 {[%emt 0:00:19]} 57. Kd2 {[%emt 0:00:27]} Nf6 {[%emt 0:01:26]} 58. Kc3 {[%emt 0:00:52]} Ne8 {[%emt 0:00:57]} 59. Rc5+ {[%emt 0:01:03]} Ke6 {[%emt 0:00:10]} 60. Kd4 {[%emt 0:01:42]} Nxc7 {[%emt 0:02:35]} 61. Re5+ {[%emt 0:02:56]} Kf6 {[%emt 0:00:14]} 62. Ra5 {[%emt 0:00:30]} Rd8+ {[%emt 0:00:27]} 63. Kc5 {[%emt 0:01:29]} Rd2 {[%emt 0:00:09]} 64. Kb6 {[%emt 0:00:27]} Ne6 {[%emt 0:00:09]} 65. c5 {[%emt 0:00:32]} Rxf2 {[%emt 0:00:16]} 66. c6 {[%emt 0:07:41]} Rb2+ {[%emt 0:01:35]} 67. Ka7 {[%emt 0:00:13]} Rc2 {[%emt 0:00:12]} 68. Ra6 {[%emt 0:00:51]} Ke7 {[%emt 0:00:32]} 69. Kb8 {[%emt 0:00:15]} Rc3 {[%emt 0:00:33]} 70. Ra7+ {[%emt 0:06:41]} Kf6 {[%emt 0:00:38]} 71. Ra6 {[%emt 0:00:52]} Ke5 {[%emt 0:00:50]} 72. Ra5+ {[%emt 0:00:46]} Kd6 {[%emt 0:00:19]} 73. Rxf5 {[%emt 0:00:26]} Rxc6 {[%emt 0:00:13]} 74. Rf6 {[%emt 0:00:19]} Ke5 {[%emt 0:00:27]} 75. Rh6 {[%emt 0:01:05]} Rc3 {[%emt 0:00:25]} 76. Rh4 {[%emt 0:00:20]} Kf5 {[%emt 0:00:04]} 77. Rh5+ {[%emt 0:00:17]} Ng5 {[%emt 0:00:06]} 0-1

[Event "58th Akiba Rubinstein A 2022"]
[Site "Polanica-Zdroj"]
[Date "2022.08.20"]
[Round "8.15"]
[White "Walkusz, Witoslaw"]
[Black "Siekanska, Zuzanna"]
[Result "1-0"]
[ECO "C77"]
[WhiteElo "2001"]
[BlackElo "1712"]
[Annotator "NA RC"]
[PlyCount "119"]
[EventDate "2022.08.13"]
[EventCountry "POL"]
[SourceTitle "playchess.com"]
[Source "ChessBase"]
[SourceQuality "1"]
[TimeControl "40/5400+30:1800+30"]

1. e4 {[%emt 0:00:05]} e5 {[%emt 0:00:05]} 2. Nf3 {[%emt 0:00:23]} Nc6 {[%emt 0:00:03]} 3. Bb5 {[%emt 0:00:06]} a6 {[%emt 0:00:08]} 4. Ba4 {[%emt 0:00:49]} Nf6 {[%emt 0:00:23]} 5. d3 {[%emt 0:00:17]} b5 {[%emt 0:01:19]} 6. Bb3 {[%emt 0:00:05]} Be7 {[%emt 0:00:06]} 7. O-O {[%emt 0:01:29]} d6 {[%emt 0:00:06]} 8. c3 {[%emt 0:00:21]} O-O {[%emt 0:01:01]} 9. a4 {[%emt 0:01:55]} Bg4 {[%emt 0:00:37]} 10. h3 {[%emt 0:01:08]} Bh5 {[%emt 0:00:48]} 11. Re1 {[%emt 0:09:11]} Na5 {[%emt 0:00:30]} 12. Bc2 {[%emt 0:02:33]} b4 {[%emt 0:01:19]} 13. g4 {[%emt 0:09:33]} Bg6 {[%emt 0:00:25]} 14. Bd2 {[%emt 0:10:03]} Rb8 {[%emt 0:02:14]} 15. cxb4 {[%emt 0:02:31]} Nc6 {[%emt 0:00:38]} 16. b5 {[%emt 0:07:21]} axb5 {[%emt 0:00:59]} 17. axb5 {[%emt 0:03:13]} Rxb5 {[%emt 0:00:10]} 18. Ba4 {[%emt 0:00:36]} Rb6 {[%emt 0:00:34]} 19. Bxc6 {[%emt 0:06:15]} Rxc6 {[%emt 0:01:53]} 20. Be3 {[%emt 0:00:05]} Qb8 {[%emt 0:15:51]} 21. Qa4 {[%emt 0:06:54]} Qxb2 {[%emt 0:04:57]} 22. Na3 {[%emt 0:00:49]} Qb7 {[%emt 0:01:59]} 23. Nc4 {[%emt 0:00:33]} Rxc4 {[%emt 0:08:07]} 24. Qxc4 {[%emt 0:00:59]} Qc8 {[%emt 0:01:30]} 25. Qa6 {[%emt 0:07:04]} Qd7 {[%emt 0:01:16]} 26. Nh2 {[%emt 0:01:32]} h5 {[%emt 0:01:10]} 27. f3 {[%emt 0:00:25]} hxg4 {[%emt 0:01:32]} 28. hxg4 {[%emt 0:00:04]} d5 {[%emt 0:01:13]} 29. Rec1 {[%emt 0:02:52]} Bd6 {[%emt 0:10:56]} 30. Qc6 {[%emt 0:05:22]} Qc8 {[%emt 0:02:30]} 31. Bc5 {[%emt 0:03:00]} Bxc5+ {[%emt 0:03:11]} 32. Rxc5 {[%emt 0:05:25]} dxe4 {[%emt 0:03:31]} 33. dxe4 {[%emt 0:00:06]} Nd7 {[%emt 0:01:35]} 34. Rca5 {[%emt 0:02:41]} Nb8 {[%emt 0:01:08]} 35. Qd5 {[%emt 0:00:52]} Rd8 {[%emt 0:00:58]} 36. Qb3 {[%emt 0:01:04]} Nc6 {[%emt 0:01:48]} 37. Rd5 {[%emt 0:01:34]} Nd4 {[%emt 0:01:43]} 38. Qa2 {[%emt 0:04:08]} c6 {[%emt 0:05:57]} 39. Rxd8+ {[%emt 0:00:58]} Qxd8 {[%emt 0:00:07]} 40. Qa8 {[%emt 0:00:00]} Qxa8 {[%emt 0:00:00]} 41. Rxa8+ {[%emt 0:01:05]} Kh7 {[%emt 0:00:12]} 42. Kf2 {[%emt 0:01:56]} f6 {[%emt 0:00:41]} 43. Rf8 {[%emt 0:01:14]} Ne6 {[%emt 0:01:46]} 44. Rc8 {[%emt 0:00:14]} Nd4 {[%emt 0:02:14]} 45. Rc7 {[%emt 0:01:53]} Kg8 {[%emt 0:01:02]} 46. Nf1 {[%emt 0:00:38]} Bf7 {[%emt 0:01:08]} 47. Ng3 {[%emt 0:00:55]} g6 {[%emt 0:02:29]} 48. Ne2 {[%emt 0:01:02]} Nxe2 {[%emt 0:01:14]} 49. Kxe2 {[%emt 0:00:01]} Bc4+ {[%emt 0:00:09]} 50. Ke3 {[%emt 0:00:51]} Bb5 {[%emt 0:00:35]} 51. f4 {[%emt 0:00:34]} Kf8 {[%emt 0:03:33]} 52. g5 {[%emt 0:02:14]} fxg5 {[%emt 0:02:18]} 53. fxe5 {[%emt 0:01:49]} Ba4 {[%emt 0:00:46]} 54. Kf3 {[%emt 0:02:40]} Bd1+ {[%emt 0:02:52]} 55. Kg3 {[%emt 0:00:04]} Bc2 {[%emt 0:00:45]} 56. Kg4 {[%emt 0:00:17]} Bxe4 {[%emt 0:00:31]} 57. Kxg5 {[%emt 0:00:03]} Ke8 {[%emt 0:00:57]} 58. e6 {[%emt 0:01:50]} c5 {[%emt 0:03:31]} 59. Kf6 {[%emt 0:00:36]} Kd8 {[%emt 0:00:13]} 60. Rxc5 {[%emt 0:00:27]} 1-0

[Event "58th Akiba Rubinstein A 2022"]
[Site "Polanica-Zdroj"]
[Date "2022.08.20"]
[Round "8.16"]
[White "Skrzyczek, Tomasz"]
[Black "Iwanczuk, Krzysztof"]
[Result "0-1"]
[ECO "D91"]
[WhiteElo "1909"]
[BlackElo "1947"]
[Annotator "NA RC"]
[PlyCount "106"]
[EventDate "2022.08.13"]
[EventCountry "POL"]
[SourceTitle "playchess.com"]
[Source "ChessBase"]
[SourceQuality "1"]
[TimeControl "40/5400+30:1800+30"]

1. d4 {[%emt 0:00:02]} Nf6 {[%emt 0:00:08]} 2. c4 {[%emt 0:00:02]} g6 {[%emt 0:00:15]} 3. Nc3 {[%emt 0:00:01]} d5 {[%emt 0:00:11]} 4. Nf3 {[%emt 0:00:16]} Bg7 {[%emt 0:00:17]} 5. Bg5 {[%emt 0:00:02]} Ne4 {[%emt 0:00:13]} 6. Bf4 {[%emt 0:00:28]} Nxc3 {[%emt 0:00:23]} 7. bxc3 c5 {[%emt 0:03:55]} 8. cxd5 {[%emt 0:00:51]} Qxd5 {[%emt 0:01:24]} 9. e3 {[%emt 0:00:08]} cxd4 {[%emt 0:01:45]} 10. cxd4 {[%emt 0:00:12]} Nc6 {[%emt 0:00:48]} 11. Be2 {[%emt 0:04:36]} O-O 12. O-O {[%emt 0:00:16]} Bf5 {[%emt 0:08:04]} 13. Qa4 {[%emt 0:02:38]} Rfc8 {[%emt 0:05:07]} 14. Bc4 {[%emt 0:09:13]} Qd7 {[%emt 0:04:34]} 15. Bb5 {[%emt 0:15:14]} a6 {[%emt 0:05:27]} 16. Bxc6 {[%emt 0:01:42]} Qxc6 {[%emt 0:00:05]} 17. Qa3 {[%emt 0:01:37]} e6 {[%emt 0:02:32]} 18. Rac1 Bf8 {[%emt 0:11:05]} 19. Qb2 {[%emt 0:12:05]} Qb5 {[%emt 0:01:45]} 20. Qa1 {[%emt 0:07:57]} Ba3 {[%emt 0:02:44]} 21. Rc5 {[%emt 0:12:06]} Bxc5 {[%emt 0:04:28]} 22. dxc5 {[%emt 0:00:02]} Qxc5 {[%emt 0:00:19]} 23. Be5 {[%emt 0:00:54]} h6 {[%emt 0:03:46]} 24. Bh8 {[%emt 0:03:39]} e5 {[%emt 0:06:03]} 25. Bxe5 {[%emt 0:01:18]} Kh7 {[%emt 0:00:25]} 26. Bd4 {[%emt 0:00:47]} Qc2 {[%emt 0:02:34]} 27. a4 {[%emt 0:04:25]} b5 {[%emt 0:08:32]} 28. Qa3 {[%emt 0:06:23]} Qc7 {[%emt 0:02:57]} 29. Ba1 {[%emt 0:00:00]} Qc2 {[%emt 0:00:00]} 30. Bd4 {[%emt 0:01:00]} Qc7 {[%emt 0:01:00]} 31. Ba1 {[%emt 0:00:32]} bxa4 {[%emt 0:02:48]} 32. Qb2 {[%emt 0:00:30]} f6 {[%emt 0:05:58]} 33. Qxf6 {[%emt 0:00:12]} Rf8 {[%emt 0:01:44]} 34. Qb2 {[%emt 0:00:48]} Rfc8 35. Qf6 {[%emt 0:00:12]} Rf8 {[%emt 0:01:00]} 36. Qh4 {[%emt 0:01:38]} Qd8 {[%emt 0:00:09]} 37. Qxa4 {[%emt 0:00:06]} Qd7 {[%emt 0:03:02]} 38. Qh4 {[%emt 0:02:37]} Qd8 {[%emt 0:00:05]} 39. Qa4 {[%emt 0:00:08]} Rc8 {[%emt 0:00:55]} 40. Rd1 {[%emt 0:01:03]} Ra8 41. Rf1 {[%emt 0:28:12]} Qd7 {[%emt 0:31:00]} 42. Qh4 {[%emt 0:02:37]} Qd8 {[%emt 0:00:05]} 43. Qa4 {[%emt 0:00:08]} Rc8 {[%emt 0:00:55]} 44. Rd1 {[%emt 0:01:03]} Rc4 {[%emt 0:01:34]} 45. Rf1 {[%emt 0:00:00]} Rc8 {[%emt 0:00:00]} 46. Rd1 {[%emt 0:01:00]} Rc4 {[%emt 0:01:00]} 47. Qb3 {[%emt 0:01:54]} Rb4 {[%emt 0:00:21]} 48. Qa4 {[%emt 0:00:00]} Rc4 {[%emt 0:00:39]} 49. Qb3 {[%emt 0:01:00]} Rb4 {[%emt 0:00:21]} 50. Qa4 {[%emt 0:00:00]} Rc4 {[%emt 0:00:39]} 51. Qb3 {[%emt 0:01:00]} Rb4 {[%emt 0:00:21]} 52. Qxb4 {[%emt 0:03:06]} Qxd1+ {[%emt 0:00:06]} 53. Ne1 {[%emt 0:00:11]} Qxa1 {[%emt 0:00:12]} 0-1